bitfinex/quotes_BTCUSD_20241211
["timestamp","ask_amount","ask_price","bid_price","bid_amount"]
[1733949922095,1.61848635,101600.0,101590.0,2.90284026]
[1733949922339,1.61848635,101600.0,101590.0,3.05284026]
[1733949922580,1.61848635,101600.0,101590.0,2.90284026]
[1733949922812,1.61848635,101600.0,101590.0,3.05284026]
[1733949923277,1.61848635,101600.0,101590.0,3.35284026]
[1733949923510,1.61848635,101600.0,101590.0,3.44594026]
[1733949923773,1.58358728,101600.0,101590.0,3.44394026]
[1733949923969,1.57558728,101600.0,101590.0,3.45594026]
[1733949924202,1.57558728,101600.0,101590.0,3.44794026]
[1733949924434,1.57558728,101600.0,101590.0,3.45694026]
[1733949924690,1.57558728,101600.0,101590.0,3.45294026]
[1733949924691,1.5442287,101600.0,101590.0,3.45294026]
[1733949924918,1.50573639,101600.0,101590.0,3.44994026]
[1733949925142,1.50573639,101600.0,101590.0,3.45794026]
[1733949925143,1.43773638,101600.0,101590.0,3.45794026]
[1733949925386,1.43773638,101600.0,101590.0,3.45194026]
[1733949925619,1.43773638,101600.0,101590.0,2.13605198]
[1733949925852,1.43773638,101600.0,101590.0,2.16818942]
[1733949926327,1.43773638,101600.0,101590.0,2.16018942]
[1733949926791,1.43773638,101600.0,101590.0,2.19118942]
[1733949927016,1.43773638,101600.0,101590.0,2.18718942]
[1733949927314,1.43773638,101600.0,101590.0,2.19618942]
[1733949927573,1.43773638,101600.0,101590.0,2.16805198]
[1733949927803,1.43773638,101600.0,101590.0,2.16405198]
[1733949928055,1.43773638,101600.0,101590.0,2.1659502]
[1733949928862,1.43773638,101600.0,101590.0,1.94208928]
[1733949929101,1.43773638,101600.0,101590.0,1.80401974]
[1733949929318,1.43773638,101600.0,101590.0,1.39374737]
[1733949929548,1.43773638,101600.0,101590.0,0.62590383]
[1733949929768,1.43773638,101600.0,101590.0,1.20678982]
[1733949929992,1.43773638,101600.0,101590.0,1.05399182]
[1733949930242,1.36973637,101600.0,101590.0,0.50116982]
[1733949930945,1.49443637,101600.0,101590.0,0.38027782]
[1733949931922,1.49443637,101600.0,101590.0,0.37827782]
[1733949932383,1.49443637,101600.0,101590.0,0.52827782]
[1733949932628,1.49443637,101600.0,101590.0,0.51527782]
[1733949933110,1.49443637,101600.0,101590.0,0.51544982]
[1733949935104,1.42643636,101600.0,101590.0,0.51544982]
[1733949937662,1.42643636,101600.0,101590.0,0.75901257]
[1733949937876,1.42643636,101600.0,101590.0,1.2317782]
[1733949938108,1.42643636,101600.0,101590.0,1.11455957]
[1733949938596,1.30173636,101600.0,101590.0,1.11455957]
[1733949939057,1.30173636,101600.0,101590.0,0.88256511]
[1733949939287,1.30173636,101600.0,101590.0,0.81420811]
[1733949939523,1.30173636,101600.0,101590.0,0.92613857]
[1733949939764,1.30216149,101600.0,101590.0,0.79120811]
[1733949940258,1.23416148,101600.0,101590.0,0.64708211]
[1733949940729,1.31146148,101600.0,101590.0,0.51544982]
[1733949941653,1.31146148,101600.0,101590.0,0.62738028]
[1733949943921,1.31146148,101600.0,101590.0,1.21433458]
[1733949944177,1.31146148,101600.0,101590.0,1.21460759]
[1733949944646,1.31146148,101600.0,101590.0,1.43426637]
[1733949944871,1.23416148,101600.0,101590.0,1.43426637]
[1733949945101,1.16616147,101600.0,101590.0,1.25853935]
[1733949945333,1.16616147,101600.0,101590.0,1.28398405]
[1733949945571,1.16616147,101600.0,101590.0,1.06432527]
[1733949946523,1.16124027,101600.0,101590.0,1.32791581]
[1733949947256,1.16124027,101600.0,101590.0,1.35143997]
[1733949948418,1.16124027,101600.0,101590.0,1.35243997]
[1733949948643,1.16124027,101600.0,101590.0,1.3519245]
[1733949948871,1.16124027,101600.0,101590.0,1.3529245]
[1733949949822,1.16124027,101600.0,101590.0,1.08884943]
[1733949950312,1.16124027,101600.0,101590.0,1.47877277]
[1733949950829,1.16124027,101600.0,101590.0,5.16796377]
[1733949951079,1.09324026,101600.0,101590.0,5.10043177]
[1733949951314,1.08514026,101600.0,101590.0,5.10043177]
[1733949951563,1.08514026,101600.0,101590.0,4.91497877]
[1733949951794,1.08514026,101600.0,101590.0,4.8774664]
[1733949952026,1.08514026,101600.0,101590.0,4.48754306]
[1733949952264,1.08514026,101600.0,101590.0,3.29200806]
[1733949952504,1.08514026,101600.0,101590.0,3.26181343]
[1733949952731,1.08514026,101600.0,101590.0,3.12051443]
[1733949952967,1.08514026,101600.0,101590.0,2.67879943]
[1733949953219,1.08514026,101600.0,101590.0,1.41963843]
[1733949953459,1.16744026,101600.0,101590.0,1.76927915]
[1733949953699,1.16744026,101600.0,101590.0,1.51520986]
[1733949953922,1.16744026,101600.0,101590.0,1.54684215]
[1733949954147,1.16744026,101600.0,101590.0,1.48976516]
[1733949954627,1.16744026,101600.0,101590.0,1.48876516]
[1733949954862,1.16744026,101600.0,101590.0,1.43415916]
[1733949955092,1.09944025,101600.0,101590.0,1.45715916]
[1733949955564,1.29714025,101600.0,101590.0,0.66735324]
[1733949955815,1.14714025,101600.0,101590.0,0.7417695]
[1733949956040,1.29714025,101600.0,101590.0,0.62983904]
[1733949956501,1.29714025,101600.0,101590.0,0.36544982]
[1733949956963,1.29714025,101600.0,101590.0,0.77982184]
[1733949958811,1.29714025,101600.0,101590.0,0.51544982]
[1733949959039,1.14714025,101600.0,101590.0,0.50774746]
[1733949960196,1.14714025,101600.0,101590.0,0.60805591]
[1733949960197,1.22914024,101600.0,101590.0,0.60805591]
[1733949961356,0.94914024,101600.0,101590.0,0.71998637]
[1733949961600,0.94914024,101600.0,101590.0,6.08764503]
[1733949961838,0.93714825,101600.0,101590.0,6.5743383]
[1733949962098,0.92954825,101600.0,101590.0,6.5743383]
[1733949962350,0.92954825,101600.0,101590.0,6.27699603]
[1733949962586,0.92954825,101600.0,101590.0,5.24321003]
[1733949963290,0.92954825,101600.0,101590.0,5.26718366]
[1733949963740,0.92194825,101600.0,101590.0,5.26918366]
[1733949963964,0.92194825,101600.0,101590.0,5.27718366]
[1733949964702,0.92194825,101600.0,101590.0,5.28218366]
[1733949964938,0.92194825,101600.0,101590.0,5.24710045]
[1733949965171,0.85394824,101600.0,101590.0,5.24710045]
[1733949965660,0.84634824,101600.0,101590.0,5.24710045]
[1733949965890,0.83724824,101600.0,101590.0,5.24710045]
[1733949966141,0.83434824,101600.0,101590.0,5.24710045]
[1733949966596,0.82994824,101600.0,101590.0,5.24710045]
[1733949967055,0.82754824,101600.0,101590.0,5.24710045]
[1733949967284,0.82754824,101600.0,101590.0,4.82252245]
[1733949967508,0.81844824,101600.0,101590.0,4.69635345]
[1733949967958,0.81554824,101600.0,101590.0,2.58036145]
[1733949968428,0.81114824,101600.0,101590.0,1.98974745]
[1733949968661,0.81114824,101600.0,101590.0,1.94839645]
[1733949969121,0.81114824,101600.0,101590.0,1.95039645]
[1733949969579,0.81114824,101600.0,101590.0,1.94839645]
[1733949969832,0.81114824,101600.0,101590.0,1.62985699]
[1733949969833,0.80254824,101600.0,101590.0,1.62985699]
[1733949970068,0.80254824,101600.0,101590.0,0.84838479]
[1733949970295,0.73454823,101600.0,101590.0,0.84838479]
[1733949970525,0.73454823,101600.0,101590.0,0.84938479]
[1733949970766,0.81044823,101600.0,101590.0,0.84938479]
[1733949971961,0.81044823,101600.0,101590.0,0.99938479]
[1733949973133,0.81044823,101600.0,101590.0,1.06765293]
[1733949973368,0.81044823,101600.0,101590.0,3.95948939]
[1733949973672,0.79344823,101600.0,101590.0,3.45723005]
[1733949973904,0.71754823,101600.0,101590.0,3.56916051]
[1733949974137,0.71754823,101600.0,101590.0,3.89132285]
[1733949974362,0.71754823,101600.0,101590.0,3.89032285]
[1733949974595,0.71754823,101600.0,101590.0,3.89132285]
[1733949974842,0.71754823,101600.0,101590.0,3.99132285]
[1733949975268,0.64954822,101600.0,101590.0,3.99132285]
[1733949975542,0.64954822,101600.0,101590.0,3.99032285]
[1733949976517,0.63254822,101600.0,101590.0,3.99232285]
[1733949976737,0.63254822,101600.0,101590.0,3.99732285]
[1733949978334,0.62824822,101600.0,101590.0,3.99732285]
[1733949978553,0.62784822,101600.0,101590.0,3.99732285]
[1733949979030,0.62784822,101600.0,101590.0,3.69356185]
[1733949979031,0.62244822,101600.0,101590.0,3.69356185]
[1733949979255,0.62244822,101600.0,101590.0,3.68262885]
[1733949980161,0.55444821,101600.0,101590.0,3.68262885]
[1733949980370,0.54984821,101600.0,101590.0,2.57720585]
[1733949980628,0.54584821,101600.0,101590.0,2.57720585]
[1733949980848,0.54584821,101600.0,101590.0,2.27974261]
[1733949981071,0.54584821,101600.0,101590.0,1.65091615]
[1733949981345,0.53062739,101600.0,101590.0,1.73614751]
[1733949981573,0.52081179,101600.0,101590.0,1.73114751]
[1733949981803,0.52081179,101600.0,101590.0,1.73214751]
[1733949982275,0.51621179,101600.0,101590.0,1.73214751]
[1733949982509,0.51621179,101600.0,101590.0,1.75514751]
[1733949982757,0.51621179,101600.0,101590.0,0.91225451]
[1733949982996,0.51621179,101600.0,101590.0,2.20388751]
[1733949983662,0.51351179,101600.0,101590.0,2.20388751]
[1733949983921,0.49051179,101600.0,101590.0,1.77810005]
[1733949984144,0.56631179,101600.0,101590.0,1.03771384]
[1733949984642,0.56238279,101600.0,101590.0,1.03771384]
[1733949984867,0.56139069,101600.0,101590.0,1.03771384]
[1733949985119,0.49339068,101600.0,101590.0,1.03771384]
[1733949986761,0.49339068,101600.0,101590.0,0.71086659]
[1733949986998,0.54179068,101600.0,101590.0,0.73759675]
[1733949987458,0.54179068,101600.0,101590.0,0.45905591]
[1733949987690,0.54179068,101600.0,101590.0,0.9879739]
[1733949987921,0.55383368,101600.0,101590.0,0.72251506]
[1733949988188,0.70383368,101600.0,101590.0,0.43217615]
[1733949988404,0.70383368,101600.0,101590.0,0.38628254]
[1733949988648,0.079,101590.0,101580.0,0.17628166]
[1733949988868,0.079,101590.0,101580.0,0.2458054]
[1733949989364,0.1284,101590.0,101580.0,0.2458054]
[1733949990366,0.06039999,101590.0,101580.0,0.2458054]
[1733949990609,0.21039999,101590.0,101580.0,0.2458054]
[1733949991316,0.21039999,101590.0,101580.0,0.2488054]
[1733949991767,0.21039999,101590.0,101580.0,0.3998054]
[1733949992478,0.0494,101590.0,101580.0,0.51173586]
[1733949992710,0.02426225,101590.0,101580.0,0.98806064]
[1733949992963,0.57963368,101600.0,101590.0,0.15]
[1733949993206,0.57963368,101600.0,101590.0,0.53812945]
[1733949993897,0.42963368,101600.0,101590.0,0.36223891]
[1733949994384,0.42963368,101600.0,101590.0,0.15]
[1733949994385,0.42963368,101600.0,101580.0,0.42169594]
[1733949994386,0.81093368,101600.0,101580.0,0.42169594]
[1733949994624,0.81093368,101600.0,101590.0,0.015]
[1733949995094,0.74293367,101600.0,101590.0,0.015]
[1733949995365,0.1913,101580.0,101550.0,0.287907]
[1733949995659,0.15,101570.0,101550.0,0.45817801]
[1733949995873,0.066,101560.0,101550.0,8.6e-05]
[1733949996106,0.066,101560.0,101550.0,0.35788456]
[1733949996343,0.1747,101560.0,101550.0,0.57012347]
[1733949996573,0.2777,101580.0,101550.0,1.61011722]
[1733949996860,0.2777,101580.0,101570.0,0.22386092]
[1733949997100,0.2777,101580.0,101570.0,0.45803441]
[1733949997336,0.27775547,101580.0,101570.0,0.45803441]
[1733949997809,0.27775547,101580.0,101570.0,0.60803441]
[1733949998524,0.12775547,101580.0,101570.0,0.61703441]
[1733949998992,0.12775547,101580.0,101570.0,0.4047955]
[1733949999225,0.12775547,101580.0,101570.0,0.51672596]
[1733949999466,0.12775547,101580.0,101570.0,0.52172596]
[1733950000169,0.05975546,101580.0,101570.0,0.52172596]
[1733950001570,0.05975546,101580.0,101570.0,0.52181206]
[1733950001796,0.05975546,101580.0,101570.0,0.63374252]
[1733950003239,0.05975546,101580.0,101570.0,0.6671191]
[1733950003467,0.04945547,101580.0,101570.0,0.76742755]
[1733950004129,0.15005547,101580.0,101570.0,0.76742755]
[1733950004623,0.14606947,101580.0,101570.0,0.79042755]
[1733950004829,0.0001722,101590.0,101570.0,0.79042755]
[1733950005055,0.0001722,101590.0,101580.0,0.38523891]
[1733950005294,0.29023483,101600.0,101580.0,0.5632948]
[1733950005519,0.43516906,101600.0,101590.0,0.28493046]
[1733950005765,0.43516906,101600.0,101590.0,0.63096451]
[1733950005984,0.29003483,101600.0,101590.0,0.60796451]
[1733950006210,0.29003483,101600.0,101590.0,0.50765606]
[1733950007559,0.29003483,101600.0,101590.0,0.51965606]
[1733950008005,0.29003483,101600.0,101590.0,0.36965606]
[1733950008006,0.48793483,101600.0,101590.0,0.36965606]
[1733950008229,0.63793483,101600.0,101590.0,0.36965606]
[1733950009398,0.62353483,101600.0,101590.0,0.36965606]
[1733950009612,0.47353483,101600.0,101590.0,0.51965606]
[1733950010746,0.49527021,101600.0,101590.0,0.51965606]
[1733950011216,0.4272702,101600.0,101590.0,0.51965606]
[1733950013347,0.4272702,101600.0,101590.0,0.51934141]
[1733950014055,0.4272702,101600.0,101590.0,0.36934141]
[1733950014752,0.45827865,101600.0,101590.0,0.012]
[1733950015031,0.45827865,101600.0,101590.0,0.12393046]
[1733950015250,0.39027864,101600.0,101590.0,0.12393046]
[1733950016920,0.36854326,101600.0,101590.0,0.12393046]
[1733950019173,0.15,101590.0,101580.0,0.0001722]
[1733950019401,0.57247745,101590.0,101580.0,0.0001722]
[1733950019630,0.0454,101580.0,101570.0,0.00064121]
[1733950019856,0.0454,101570.0,101550.0,0.01870745]
[1733950020115,0.19110845,101570.0,101550.0,0.01870745]
[1733950020352,0.3,101550.0,101540.0,0.13055191]
[1733950020588,0.3,101550.0,101540.0,0.37648471]
[1733950020812,0.15,101550.0,101540.0,0.26455425]
[1733950021088,0.1954,101550.0,101540.0,0.37648471]
[1733950021301,0.22560845,101550.0,101540.0,0.01862145]
[1733950021535,0.15,101530.0,101520.0,0.11193046]
[1733950021770,0.15,101530.0,101520.0,0.35788596]
[1733950022774,0.15,101530.0,101520.0,0.35794143]
[1733950023231,0.151,101530.0,101520.0,0.35794143]
[1733950023685,0.151,101530.0,101520.0,0.47087189]
[1733950025121,0.08299999,101530.0,101520.0,0.47087189]
[1733950025841,0.12839999,101550.0,101520.0,0.59418034]
[1733950026073,0.08299999,101560.0,101540.0,0.22386092]
[1733950026333,0.08299999,101560.0,101550.0,0.25773842]
[1733950026594,0.08299999,101560.0,101550.0,0.22386092]
[1733950026595,0.08317219,101560.0,101550.0,0.22386092]
[1733950027786,0.08317219,101560.0,101550.0,0.22786092]
[1733950028763,0.08317219,101560.0,101550.0,0.22886092]
[1733950029459,0.0001722,101560.0,101550.0,0.22886092]
[1733950029683,0.08317219,101560.0,101550.0,0.22886092]
[1733950030124,0.01517218,101560.0,101550.0,0.22886092]
[1733950030378,0.29557218,101570.0,101550.0,0.22886092]
[1733950030618,0.2804,101570.0,101560.0,0.11193046]
[1733950030860,0.2804,101570.0,101560.0,0.35781646]
[1733950031822,0.29712691,101570.0,101560.0,0.35781646]
[1733950032066,0.28095473,101570.0,101560.0,0.11193046]
[1733950032520,0.28195473,101570.0,101560.0,0.11193046]
[1733950032952,0.28195473,101570.0,101560.0,0.35781936]
[1733950033174,0.19875473,101570.0,101560.0,0.35781936]
[1733950034549,0.19975473,101570.0,101560.0,0.35781936]
[1733950034767,0.00155473,101570.0,101560.0,0.46974982]
[1733950034986,0.00055473,101570.0,101560.0,0.6557723]
[1733950035218,0.28716801,101600.0,101560.0,0.6567723]
[1733950035436,0.23747646,101600.0,101590.0,0.11193046]
[1733950036181,0.38747646,101600.0,101590.0,0.11193046]
[1733950036631,0.39147646,101600.0,101590.0,0.11193046]
[1733950036865,0.24147646,101600.0,101590.0,0.11193046]
[1733950037307,0.39147646,101600.0,101590.0,0.11193046]
[1733950037748,0.39347646,101600.0,101590.0,0.11193046]
[1733950038891,0.24347646,101600.0,101590.0,0.11193046]
[1733950039113,0.39347646,101600.0,101590.0,0.11193046]
[1733950039328,0.24347646,101600.0,101590.0,0.11193046]
[1733950039570,0.24347646,101600.0,101580.0,0.11193046]
[1733950039806,0.15,101580.0,101570.0,0.26193046]
[1733950040026,0.10030845,101580.0,101570.0,0.15]
[1733950040258,0.15,101570.0,101560.0,0.11248519]
[1733950040473,0.15,101570.0,101560.0,0.35836769]
[1733950040937,0.14940845,101570.0,101560.0,0.00055473]
[1733950041159,0.15,101550.0,101540.0,0.11201656]
[1733950041394,0.15,101550.0,101540.0,0.35794836]
[1733950041834,0.10030845,101560.0,101540.0,0.11201656]
[1733950042527,0.001,101550.0,101540.0,0.12001656]
[1733950042766,0.10030845,101560.0,101540.0,0.26201656]
[1733950042987,0.10030845,101560.0,101550.0,0.11193046]
[1733950043201,0.10030845,101560.0,101550.0,0.35783746]
[1733950043202,0.15,101560.0,101550.0,0.35783746]
[1733950043484,0.10030845,101560.0,101540.0,0.26201656]
[1733950044162,0.10030845,101560.0,101540.0,0.26501656]
[1733950044821,0.001,101550.0,101540.0,0.27001656]
[1733950045038,0.03226446,101560.0,101540.0,0.26201656]
[1733950045260,0.03226446,101560.0,101540.0,0.0020861]
[1733950045486,0.0471,101550.0,101540.0,0.0060861]
[1733950045711,0.14740845,101550.0,101540.0,8.61e-05]
[1733950045963,0.14840845,101550.0,101540.0,0.0120861]
[1733950046393,0.42765545,101550.0,101540.0,0.0040861]
[1733950046624,0.42765545,101550.0,101540.0,0.0080861]
[1733950046849,0.23070845,101550.0,101540.0,0.0080861]
[1733950047295,0.23070845,101550.0,101540.0,0.0040861]
[1733950047535,0.23070845,101550.0,101540.0,0.0050861]
[1733950047756,0.23070845,101550.0,101540.0,0.0010861]
[1733950047989,0.23070845,101550.0,101540.0,8.61e-05]
[1733950048696,0.23170845,101550.0,101540.0,8.61e-05]
[1733950050067,0.3139599,101550.0,101540.0,8.61e-05]
[1733950050278,0.5392859,101550.0,101520.0,8.61e-05]
[1733950050488,0.34268345,101540.0,101520.0,8.61e-05]
[1733950050697,0.54699056,101540.0,101520.0,8.61e-05]
[1733950050904,0.53966145,101540.0,101520.0,8.61e-05]
[1733950051402,0.69124345,101540.0,101520.0,8.61e-05]
[1733950051616,0.69124345,101540.0,101500.0,0.000172]
[1733950051617,0.37531145,101530.0,101500.0,0.000172]
[1733950051832,0.19702,101520.0,101500.0,0.000172]
[1733950052042,0.10030845,101510.0,101500.0,0.000172]
[1733950052251,0.10030845,101510.0,101490.0,0.000172]
[1733950052470,0.077,101500.0,101490.0,0.000172]
[1733950052677,0.17730845,101500.0,101490.0,0.000172]
[1733950052891,0.17730845,101500.0,101480.0,0.000172]
[1733950053099,0.10030845,101490.0,101480.0,0.00028142]
[1733950054783,0.10030845,101490.0,101480.0,0.00128142]
[1733950055260,0.1223,101500.0,101480.0,0.00128142]
[1733950055461,0.22260845,101500.0,101480.0,0.00128142]
[1733950055869,0.21537672,101520.0,101490.0,0.16747296]
[1733950056044,0.15,101500.0,101490.0,0.16747296]
[1733950056257,0.10030845,101510.0,101490.0,0.16747296]
[1733950056820,0.15,101490.0,101480.0,0.16875438]
[1733950057023,0.29733345,101510.0,101480.0,0.15128142]
[1733950057438,0.002,101500.0,101480.0,0.15028142]
[1733950057637,0.10230845,101500.0,101480.0,0.31775438]
[1733950057883,0.10530845,101500.0,101480.0,0.31775438]
[1733950058041,0.10030845,101500.0,101480.0,0.16775438]
[1733950058696,0.15,101480.0,101470.0,0.16747296]
[1733950058925,0.15,101480.0,101470.0,0.58662207]
[1733950061071,0.151,101480.0,101470.0,0.59162207]
[1733950061317,0.151,101480.0,101470.0,0.59362207]
[1733950062336,0.151,101480.0,101470.0,0.59370817]
[1733950063096,0.151,101480.0,101470.0,0.89490483]
[1733950063097,0.00505221,101480.0,101470.0,0.89490483]
[1733950063320,0.15,101510.0,101500.0,0.023]
[1733950063681,0.15,101510.0,101500.0,0.58649996]
[1733950063884,0.15,101510.0,101500.0,0.419027]
[1733950064086,0.0030175,101520.0,101500.0,0.15]
[1733950064323,0.10332595,101520.0,101500.0,0.15]
[1733950064538,0.10030845,101510.0,101490.0,0.15]
[1733950064748,0.10130845,101510.0,101500.0,0.005]
[1733950064969,0.10130845,101510.0,101500.0,0.15]
[1733950065157,0.21401149,101530.0,101500.0,0.15]
[1733950065465,0.10730845,101520.0,101500.0,0.31847296]
[1733950065655,0.11230845,101520.0,101500.0,0.03302233]
[1733950065868,0.003,101510.0,101500.0,0.03302233]
[1733950066080,0.15,101500.0,101490.0,0.19047296]
[1733950066332,0.15,101500.0,101490.0,0.43652766]
[1733950067592,0.15,101510.0,101490.0,0.53683611]
[1733950067800,0.15,101510.0,101500.0,0.19047296]
[1733950068035,0.15,101510.0,101500.0,0.023]
[1733950068241,0.15,101500.0,101490.0,0.41952766]
[1733950068451,0.15,101500.0,101490.0,0.44051386]
[1733950068662,0.15,101500.0,101490.0,0.43651386]
[1733950068876,0.15,101500.0,101490.0,0.58651386]
[1733950069085,0.15,101500.0,101490.0,0.4190409]
[1733950069716,0.15,101500.0,101490.0,0.41874237]
[1733950069959,0.15,101500.0,101490.0,0.58621533]
[1733950070696,0.15,101500.0,101490.0,0.58721533]
[1733950070945,0.15,101500.0,101490.0,0.58621533]
[1733950071157,0.0820002,101500.0,101490.0,0.59121533]
[1733950071367,0.0820002,101500.0,101490.0,0.59321533]
[1733950071787,0.0820002,101500.0,101490.0,0.59121533]
[1733950072398,0.0820002,101500.0,101490.0,0.59221533]
[1733950072635,0.36739186,101520.0,101490.0,0.006]
[1733950072855,0.04563986,101510.0,101490.0,0.006]
[1733950073071,0.23533645,101510.0,101490.0,0.006]
[1733950073298,0.00733461,101500.0,101490.0,0.006]
[1733950073524,0.0820002,101480.0,101470.0,0.00014161]
[1733950073813,0.0820002,101480.0,101470.0,0.24622391]
[1733950074647,0.200045,101500.0,101470.0,0.00014161]
[1733950074873,0.41205677,101500.0,101470.0,0.00514161]
[1733950075085,0.29735345,101500.0,101470.0,0.00514161]
[1733950075289,0.00734189,101490.0,101470.0,0.00514161]
[1733950075500,0.10030845,101500.0,101470.0,0.00714161]
[1733950075756,0.00734187,101490.0,101470.0,0.00714161]
[1733950076002,0.09265032,101500.0,101470.0,0.00714161]
[1733950076243,0.24265032,101500.0,101470.0,0.00714161]
[1733950076520,0.24265032,101500.0,101470.0,0.00214161]
[1733950076782,0.24565032,101500.0,101470.0,0.00214161]
[1733950077281,0.24565032,101500.0,101470.0,0.02314161]
[1733950077558,0.44269432,101500.0,101470.0,0.02314161]
[1733950077795,0.44569432,101500.0,101470.0,0.02314161]
[1733950078079,0.24865032,101500.0,101470.0,0.02314161]
[1733950078366,0.0820002,101490.0,101480.0,0.13470332]
[1733950078615,0.006,101500.0,101480.0,0.023]
[1733950079106,0.0820002,101480.0,101470.0,0.02314161]
[1733950079395,0.10330845,101500.0,101470.0,0.02314161]
[1733950079396,0.49740545,101500.0,101470.0,0.02314161]
[1733950079886,0.10030845,101490.0,101470.0,0.00014161]
[1733950080226,0.49445245,101490.0,101470.0,0.00014161]
[1733950080400,0.66725576,101490.0,101470.0,0.00014161]
[1733950080647,0.33896069,101480.0,101470.0,0.00014161]
[1733950080889,0.19711,101470.0,101450.0,8.6e-05]
[1733950081129,0.394223,101470.0,101450.0,0.00064163]
[1733950081377,0.49453145,101470.0,101450.0,0.00064163]
[1733950081648,0.29741845,101470.0,101450.0,0.00064163]
[1733950081895,0.49452945,101470.0,101450.0,0.00064163]
[1733950082395,0.49952945,101470.0,101450.0,0.00064163]
[1733950083178,0.005,101470.0,101460.0,0.34671509]
[1733950083429,0.005,101470.0,101460.0,0.46026319]
[1733950083720,0.005,101470.0,101460.0,0.53528819]
[1733950083721,0.012,101470.0,101460.0,0.53528819]
[1733950084033,0.0820002,101510.0,101480.0,0.023]
[1733950084290,0.0820002,101510.0,101500.0,0.023]
[1733950084824,0.0820002,101490.0,101470.0,0.15]
[1733950085081,0.0820002,101490.0,101480.0,0.23501177]
[1733950085341,0.01400019,101490.0,101480.0,0.12330845]
[1733950085815,0.01400019,101490.0,101480.0,0.12336396]
[1733950086336,0.01400019,101490.0,101480.0,0.12436396]
[1733950086821,0.01400019,101490.0,101480.0,0.12336396]
[1733950087036,0.01500019,101490.0,101480.0,0.13236396]
[1733950087581,0.01500019,101490.0,101480.0,0.13736396]
[1733950090244,0.0348636,101500.0,101480.0,0.13736396]
[1733950090470,0.16665873,101500.0,101480.0,0.13736396]
[1733950090694,0.0348636,101500.0,101480.0,0.13736396]
[1733950091375,0.0348636,101500.0,101480.0,0.12336396]
[1733950091594,0.13206443,101500.0,101480.0,0.12536396]
[1733950091860,0.32910943,101500.0,101480.0,0.00205551]
[1733950092127,1.07026816,101500.0,101480.0,0.00205551]
[1733950092345,0.66255826,101490.0,101480.0,0.00205551]
[1733950092554,0.74325628,101490.0,101480.0,0.00205551]
[1733950092762,0.66747883,101490.0,101480.0,0.00505551]
[1733950092974,0.22010738,101490.0,101480.0,0.00505551]
[1733950093234,0.39629457,101490.0,101480.0,5.551e-05]
[1733950093415,0.3963365,101490.0,101480.0,0.00105551]
[1733950093648,0.3963365,101490.0,101480.0,5.551e-05]
[1733950093833,0.5933995,101490.0,101480.0,5.551e-05]
[1733950094104,0.5983995,101490.0,101480.0,5.551e-05]
[1733950094764,0.4013365,101490.0,101480.0,0.52180822]
[1733950094982,0.005,101490.0,101480.0,0.8801542]
[1733950095213,0.005,101490.0,101480.0,0.81749082]
[1733950095425,0.52870958,101510.0,101490.0,0.023]
[1733950095426,0.3965089,101510.0,101490.0,0.023]
[1733950095899,0.17640152,101510.0,101490.0,0.29085271]
[1733950096123,0.0001724,101510.0,101490.0,0.29085271]
[1733950096657,0.0001724,101510.0,101500.0,0.12330845]
[1733950097957,0.0001724,101510.0,101500.0,0.12430845]
[1733950098722,0.0001724,101510.0,101490.0,0.3029495]
[1733950098975,0.0001724,101510.0,101490.0,0.40325795]
[1733950099217,0.0001724,101510.0,101500.0,0.001]
[1733950099463,0.0001724,101510.0,101500.0,0.16854426]
[1733950099679,0.0001724,101510.0,101500.0,0.16754426]
[1733950100113,0.13226609,101530.0,101500.0,0.16754426]
[1733950100332,0.1884664,101530.0,101490.0,0.26885271]
[1733950100542,0.1884664,101530.0,101500.0,0.002]
[1733950100759,0.08815795,101530.0,101510.0,0.25004426]
[1733950100971,0.08815795,101530.0,101510.0,0.0825]
[1733950101837,0.28515195,101530.0,101500.0,0.002]
[1733950102500,0.48215095,101530.0,101500.0,0.023]
[1733950102712,0.48915095,101530.0,101500.0,0.023]
[1733950103163,0.197011,101520.0,101490.0,0.2307]
[1733950103419,0.197011,101520.0,101490.0,0.10130845]
[1733950103639,0.197011,101520.0,101490.0,0.10030845]
[1733950103846,0.18440845,101530.0,101500.0,0.001]
[1733950104057,0.17740845,101530.0,101490.0,0.16754426]
[1733950104266,0.2655664,101530.0,101490.0,0.023]
[1733950104475,0.4625554,101530.0,101490.0,0.023]
[1733950104700,0.002902,101520.0,101490.0,0.023]
[1733950105157,0.40144573,101530.0,101490.0,0.12330845]
[1733950105379,0.003,101520.0,101490.0,0.12330845]
[1733950105601,0.003,101520.0,101480.0,0.02783771]
[1733950105602,0.16797468,101520.0,101480.0,0.173]
[1733950105823,0.16997468,101520.0,101480.0,0.27330845]
[1733950106067,0.16697468,101520.0,101480.0,0.27330845]
[1733950106487,0.16497468,101520.0,101490.0,0.0803]
[1733950106703,0.16497468,101520.0,101490.0,0.0793]
[1733950106927,0.16697468,101520.0,101490.0,0.0793]
[1733950107140,0.16997468,101520.0,101490.0,0.0793]
[1733950107587,0.06966623,101520.0,101490.0,0.17960845]
[1733950107934,0.07062352,101520.0,101490.0,0.17960845]
[1733950108344,0.07262352,101520.0,101490.0,0.17969445]
[1733950108718,0.06979552,101520.0,101490.0,0.17969445]
[1733950108949,0.28478053,101520.0,101490.0,0.079386]
[1733950109130,0.17310397,101520.0,101490.0,0.079386]
[1733950110286,0.06466623,101520.0,101490.0,0.17969445]
[1733950110985,0.06466623,101510.0,101490.0,8.6e-05]
[1733950111242,0.17634279,101500.0,101490.0,8.6e-05]
[1733950111456,0.27665124,101500.0,101490.0,8.6e-05]
[1733950111667,0.32655124,101500.0,101490.0,8.6e-05]
[1733950112809,0.57060557,101500.0,101490.0,0.006086]
[1733950113020,0.65120557,101500.0,101490.0,0.006086]
[1733950113233,0.73935475,101500.0,101490.0,0.006086]
[1733950113446,0.73935475,101500.0,101490.0,8.6e-05]
[1733950113669,0.62767819,101500.0,101490.0,8.6e-05]
[1733950114095,0.75990196,101500.0,101490.0,8.6e-05]
[1733950114304,0.56285796,101500.0,101490.0,8.6e-05]
[1733950114512,0.75990196,101500.0,101490.0,0.003086]
[1733950114930,0.56485796,101500.0,101490.0,8.6e-05]
[1733950115133,0.49785795,101500.0,101490.0,8.6e-05]
[1733950115333,0.50603863,101500.0,101490.0,8.6e-05]
[1733950115790,0.50803863,101500.0,101490.0,8.6e-05]
[1733950116210,0.39636207,101500.0,101490.0,8.6e-05]
[1733950116651,0.38618139,101500.0,101490.0,8.6e-05]
[1733950117056,0.57424194,101500.0,101490.0,8.6e-05]
[1733950117224,0.56247975,101500.0,101490.0,8.6e-05]
[1733950117647,0.67415631,101500.0,101490.0,8.6e-05]
[1733950118001,0.56247975,101500.0,101490.0,8.6e-05]
[1733950118216,0.56256275,101500.0,101490.0,8.6e-05]
[1733950118430,0.80649075,101500.0,101490.0,8.6e-05]
[1733950118642,0.06466623,101470.0,101450.0,0.078186]